Cogmind - Beta 12 @@@ ROGUE MODE // 2023.04.28 @ 21:14:05 Player: Decinym Result: Destroyed by 8R-AWN with 8R-AWN's Boregun Performance ------------- Evolutions (1) 500 Regions Visited (5) 1000 Robots Destroyed (47) 235 Value Destroyed (1078) 1078 Prototype IDs (25) 500 Alien Tech Used (0) 0 Bonus (338) 338 TOTAL SCORE: 3651 Bonus ------- High Alert Combat Kills 38 Aligned with FarCom 300 Cogmind --------- Core Integrity 0/400 Matter 98/300 Energy 91/100 System Corruption 2% Temperature Cool (2) Movement Core (900) Ox17 Location -9/Exiles Parts ------- > --- POWER (1) -------- (None) > --- PROPULSION (3) --- (None) > --- UTILITY (3) ------ High-capacity Storage Unit Light Armor Plating Light Armor Plating > --- WEAPON (2) ------- Heavy Assault Rifle Autogun > --- INVENTORY (20) --- Experimental Sensor Array EM Pulse Cannon Firepult Heavy Assault Rifle Heavy Assault Rifle Heavy Assault Rifle Heavy Assault Rifle Peak State ------------ > --- POWER ------------ Light Angular Momentum Engine > --- PROPULSION ------- Light Treads Light Treads Improved Treads > --- UTILITY ---------- High-capacity Storage Unit Salvage Targeting Computer Insulated Plating > --- WEAPON ----------- Heavy Assault Rifle Heavy Assault Rifle > --- INVENTORY -------- Improved Ion Engine Nuclear Core Nuclear Core Reinforced Deuterium Engine Light Treads Light Treads Experimental Sensor Array Light Armor Plating Light Armor Plating Light Armor Plating Insulated Plating EM Pulse Cannon Firepult Heavy Assault Rifle Heavy Assault Rifle Heavy Assault Rifle Autogun Autogun Autogun [Rating: 25] Favorites ----------- Power Light Angular Momentum Engine Engine Light Angular Momentum Engine Propulsion Light Treads Treads Light Treads Leg Aluminum Leg Utility Insulated Plating Device Improved Heat Sink Storage High-capacity Storage Unit Processor Salvage Targeting Computer Protection Insulated Plating Weapon Heavy Assault Rifle Energy Gun EM Pulse Gun Ballistic Gun Heavy Assault Rifle Ballistic Cannon Battle Cannon Build | -11 -10 -10 -9 -9 -9 ------- Run | Jun Mat Min Mat Min Exi Slots Evolved 2 | . . . 2 . . Power . | . . . . . . Propulsion 1 | . . . 1 . . Utility 1 | . . . 1 . . Weapon . | . . . . . . Parts Attached 42 | . . 8 16 3 15 Power 5 | . . 1 3 . 1 Engine 5 | . . 1 3 . 1 Core . | . . . . . . Reactor . | . . . . . . Propulsion 11 | . . 3 4 1 3 Treads 7 | . . . 3 1 3 Leg 4 | . . 3 1 . . Wheel . | . . . . . . Hover . | . . . . . . Flight . | . . . . . . Utility 14 | . . 3 4 2 5 Device 3 | . . 3 . . . Storage 2 | . . . 2 . . Processor 1 | . . . . . 1 Hackware . | . . . . . . Protection 8 | . . . 2 2 4 Artifact . | . . . . . . Weapon 12 | . . 1 5 . 6 Energy Gun 2 | . . 1 1 . . Energy Cannon . | . . . . . . Ballistic Gun 8 | . . . 2 . 6 Ballistic Cannon 2 | . . . 2 . . Launcher . | . . . . . . Special Weapon . | . . . . . . Impact Weapon . | . . . . . . Slashing Weapon . | . . . . . . Piercing Weapon . | . . . . . . Special Melee Weapon . | . . . . . . Unidentified Prototypes 2 | . . 1 1 . . Corrupted Parts 2 | . . 2 . . . System Corruption 5 | . . 5 . . . Parts Lost 18 | . . 1 3 2 12 Power 3 | . . 1 . . 2 Propulsion 8 | . . . 2 1 5 Utility 4 | . . . . 1 3 Weapon 3 | . . . 1 . 2 Highest Loss Streak 7 | . . 1 2 2 7 To Critical Strikes 8 | . . . . . 8 Average Slot Usage (%) 96 | . 85 98 98 100 92 Engine 11 | . 14 13 11 11 10 Treads 23 | . . . 27 33 31 Leg 7 | . 28 28 4 . . Device 6 | . . 13 11 . . Storage 11 | . 14 14 11 11 11 Protection 12 | . . . 10 22 20 Energy Gun 8 | . 28 28 6 . . Ballistic Gun 7 | . . . . 22 16 Ballistic Cannon 5 | . . . 14 . . Naked Turns . | . . . . . . Heaviest Build 61 | 12 12 15 60 61 61 Greatest Support 63 | 20 20 25 60 63 63 Greatest Overweight (x) 1 | . . . . 1 . Average Overweight (x) . | . . . . . . Largest Inventory Capacity 20 | . 8 8 20 20 20 Average Capacity 15 | . 8 8 15 20 20 Most Carried 20 | . 6 8 20 20 20 Average Carried 14 | . 6 7 13 19 18 Final Capacity 20 | 8 8 8 20 20 20 Final Carried 20 | 6 6 8 20 18 8 Class Distribution -------------------- 63% | Mutant 36% | Scavenger-Mutant Dominant Class ---------------- Mutant | -10/Materials Mutant | -10/Mines Mutant | -9/Materials Scavenger-Mutant | -9/Mines Scavenger-Mutant | -9/Exiles Resources | -11 -10 -10 -9 -9 -9 ----------- Run | Jun Mat Min Mat Min Exi Matter Collected 1520 | 200 . 60 646 23 591 Remotely . | . . . . . . Salvage Created 1559 | . 175 247 1068 . 69 Parts 96 | . 9 17 70 . . Haulers Intercepted 5 | . . . 5 . . Recyclers Shooed 3 | . . 2 1 . . Parts Field Recycled . | . . . . . . Retrieved Matter . | . . . . . . Parts Self-Destructed . | . . . . . . Prevented . | . . . . . . Kills | -11 -10 -10 -9 -9 -9 ------- Run | Jun Mat Min Mat Min Exi Combat Hostiles Destroyed 35 | . 2 6 22 1 4 Guns 11 | . . 4 2 1 4 Cannons 18 | . . . 18 . . AOE 5 | . 1 2 2 . . Classes Destroyed 10 | . 2 1 5 1 1 Worker 4 | . . . 4 . . Builder 1 | . . . 1 . . Hauler 5 | . . . 5 . . Recycler 4 | . 1 1 2 . . Watcher 2 | . . . 2 . . Swarmer 12 | . . 4 8 . . Grunt 12 | . 2 2 8 . . Sentry 6 | . . . 6 . . Demolisher 1 | . . . . 1 . Assembled 4 | . . . . . 4 Best Kill Streak 5 | . 3 3 5 1 3 Combat Bots Only 5 | . 2 3 5 1 3 Max Kills in Single Turn 3 | . 1 2 3 1 1 Gunslinging . | . . . . . . Exploded 2 | . 1 2 2 . . Melee . | . . . . . . Uniques/NPCs Destroyed . | . . . . . . Combat | -11 -10 -10 -9 -9 -9 -------- Run | Jun Mat Min Mat Min Exi Damage Taken 3175 | . 116 202 914 329 1614 Core 465 | . . 60 76 66 263 Absorbed by Shields . | . . . . . . Core Remaining (%) 88 | 100 . 76 . . . Volleys Fired 166 | . 8 17 78 4 59 Largest 2 | . 2 2 2 2 2 Hottest 90 | . 80 90 90 46 46 Shots Fired 329 | . 16 35 153 8 117 Gun 225 | . 16 35 49 8 117 Cannon 104 | . . . 104 . . Launcher . | . . . . . . Special . | . . . . . . Kinetic 229 | . . . 104 8 117 Thermal 42 | . . 4 38 . . Explosive . | . . . . . . Electromagnetic 58 | . 16 31 11 . . Robot Hit Streak 17 | . 10 5 8 7 17 Robot Miss Streak 4 | . 2 3 4 1 4 Penetration Max . | . . . . . . Secondary Targets 3 | . . 2 . 1 . Max Gunslinging Chain 1 | . . 1 . 1 . Shots Hit Robots 216 | . 12 23 89 7 85 Core Hits 78 | . 5 12 42 3 16 Critical Kills . | . . . . . . Critical Parts Destroyed . | . . . . . . Critical Strikes 3 | . . 1 2 . . Blast 2 | . . . 2 . . Corrupt 1 | . . 1 . . . Melee Attacks . | . . . . . . Impact . | . . . . . . Slashing . | . . . . . . Piercing . | . . . . . . Sneak Attacks . | . . . . . . Combat Hostiles . | . . . . . . Follow-up Attacks . | . . . . . . Damage Inflicted 4040 | . 204 439 2005 111 1281 Guns 2198 | . 161 297 348 111 1281 Cannons 1520 | . . . 1520 . . Explosions 310 | . 43 130 137 . . Melee . | . . . . . . Ramming 12 | . . 12 . . . Kinetic 2912 | . . . 1520 111 1281 Thermal 599 | . 43 156 400 . . Explosive . | . . . . . . Electromagnetic 517 | . 161 271 85 . . Impact . | . . . . . . Slashing . | . . . . . . Piercing . | . . . . . . Highest Corruption 5 | . . 5 2 2 2 Average Corruption 2 | . . 4 2 2 2 Corruption Purged . | . . . . . . Corruption Blocked . | . . . . . . Effects 42 | . . 14 7 4 17 Message Errors 8 | . . 4 1 . 3 Matter Fused 11 | . . 2 1 2 6 Heat Flow Errors 6 | . . . . . 6 Energy Discharges 4 | . . 3 . 1 . Parts Rejected 1 | . . . 1 . . Parts Fused 3 | . . 2 1 . . Data Loss (minor) 6 | . . 2 1 1 2 Misfires 2 | . . 1 1 . . Weapon Failures 1 | . . . 1 . . Overload Shots . | . . . . . . Overflow Damage 24 | . . . 24 . . Projectiles 6 | . . . 6 . . Explosions 18 | . . . 18 . . Melee . | . . . . . . Knockbacks 9 | . . . 9 . . Impact . | . . . . . . Kinetic 9 | . . . 9 . . Secondary . | . . . . . . Self-Inflicted Damage 153 | . . 40 113 . . Shots 3 | . . 1 2 . . Rammed . | . . . . . . Targets Rammed 1 | . . 1 . . . Kicked 1 | . . 1 . . . Crushed . | . . . . . . Highest Temperature 270 | . 228 106 38 9 270 Average Temperature 86 | . 133 50 12 5 111 Received Heat Transfer 414 | . 84 102 228 . . Effects 1 | . . . . . 1 Energy Bleed 1 | . . . . . 1 Siege Activations . | . . . . . . Robots Corrupted 1 | . 1 . . . . Combat Hostiles 1 | . 1 . . . . Parts Fried 2 | . 1 1 . . . Impact Corruptions . | . . . . . . Robots Melted . | . . . . . . Combat Hostiles . | . . . . . . Parts Melted . | . . . . . . Heat Transferred 1151 | . 50 224 877 . . Parts Sabotaged . | . . . . . . Parts Stolen . | . . . . . . Parts Stripped . | . . . . . . Power Chain Reactions 4 | . 1 2 1 . . Missiles Intercepted . | . . . . . . Alert | -11 -10 -10 -9 -9 -9 ------- Run | Jun Mat Min Mat Min Exi Peak Influence 535 | . 59 207 535 208 . Initial 208 | . . 22 2 208 . Average 154 | . 12 85 182 207 . Maximum Alert Level 2 | . . 1 2 1 . Low Security (%) 62 | . 100 76 65 1 . Level 1 33 | . . 23 27 98 . Level 2 4 | . . . 7 . . Level 3 . | . . . . . . Level 4 . | . . . . . . Level 5 . | . . . . . . High Security . | . . . . . . Max Security . | . . . . . . Squads Dispatched 2 | . . . 2 . . Investigation . | . . . . . . Extermination . | . . . . . . Reinforcement 2 | . . . 2 . . Assault . | . . . . . . Garrison . | . . . . . . Intercept . | . . . . . . Searches Triggered . | . . . . . . Construction Impeded . | . . . . . . Haulers Reinforced . | . . . . . . Active Scanning Responses . | . . . . . . Cargo Convoy Interrupts . | . . . . . . Stealth | -11 -10 -10 -9 -9 -9 --------- Run | Jun Mat Min Mat Min Exi Distress Signals 5 | . . . 5 . . Communications Jammed . | . . . . . . Distress Signals . | . . . . . . Times Spotted 55 | . 3 6 39 2 5 Peak Tracking Total 9 | . 2 3 5 2 9 Tactical Retreats 2 | . . . 2 . . Traps | -11 -10 -10 -9 -9 -9 ------- Run | Jun Mat Min Mat Min Exi Traps Triggered 1 | . . . 1 . . Indirectly . | . . . . . . Trap Hack Attempts . | . . . . . . Triggered . | . . . . . . Disarmed . | . . . . . . Reprogrammed . | . . . . . . Reused 1 | . . . 1 . . Traps Extracted . | . . . . . . Installed 1 | . . . 1 . . Triggered 1 | . . . 1 . . Most Traps Carried 2 | . . 2 2 . . Exploded 3 | . . . . . 3 Machines | -11 -10 -10 -9 -9 -9 ---------- Run | Jun Mat Min Mat Min Exi Machines Disabled 15 | . 1 3 7 . 4 Max in Single Turn 2 | . 1 1 2 . 1 Machines Repaired . | . . . . . . Machines Sabotaged . | . . . . . . Overloaded Fab Kills . | . . . . . . Hacking | -11 -10 -10 -9 -9 -9 --------- Run | Jun Mat Min Mat Min Exi Machines Accessed 7 | . . . 5 . 2 Terminals 4 | . . . 4 . . Fabricators . | . . . . . . Repair Stations 1 | . . . 1 . . Recycling Units . | . . . . . . Scanalyzers . | . . . . . . Garrison Access . | . . . . . . Total Hacks 14 | . . . 12 . 2 Successful 7 | . . . 5 . 2 Failed 7 | . . . 7 . . Catastrophic 2 | . . . 2 . . Database Lockouts . | . . . . . . Manual 10 | . . . 9 . 1 Terminals 11 | . . . 11 . . Fabricators . | . . . . . . Repair Stations 1 | . . . 1 . . Recycling Units . | . . . . . . Scanalyzers . | . . . . . . Garrison Access . | . . . . . . Terminal Hacks 4 | . . . 2 . 2 Record 1 | . . . . . 1 Branch Access Points 1 | . . . 1 . . Zone Layout 1 | . . . 1 . . EX-Prototype ID Bank 1 | . . . . . 1 Fabricator Hacks . | . . . . . . Repair Station Hacks . | . . . . . . Recycling Unit Hacks . | . . . . . . Scanalyzer . | . . . . . . Garrison Access Hacks . | . . . . . . Unauthorized Hacks 3 | . . . 3 . . Terminals 3 | . . . 3 . . Track 1 | . . . 1 . . Botnet 1 | . . . 1 . . Disrupt 1 | . . . 1 . . Fabricators . | . . . . . . Repair Stations . | . . . . . . Recycling Units . | . . . . . . Scanalyzers . | . . . . . . Garrison Access . | . . . . . . Data Cores Recovered . | . . . . . . Used . | . . . . . . Hacking Detections 5 | . . . 5 . . Full Trace Events . | . . . . . . Feedback Events . | . . . . . . Feedback Blocked . | . . . . . . Robot Schematics Acquired . | . . . . . . Robots Built . | . . . . . . Authchips . | . . . . . . Time . | . . . . . . Total Robot Build Rating . | . . . . . . Part Schematics Acquired . | . . . . . . Parts Built . | . . . . . . Authchips . | . . . . . . Time . | . . . . . . Total Part Build Rating . | . . . . . . Parts Repaired . | . . . . . . Time . | . . . . . . Parts Recycled . | . . . . . . Recycled Matter . | . . . . . . Retrieved Matter . | . . . . . . Retrieved Components . | . . . . . . Parts Scanalyzed . | . . . . . . Part Schematics Acquired . | . . . . . . Parts Damaged . | . . . . . . Bothacking | -11 -10 -10 -9 -9 -9 ------------ Run | Jun Mat Min Mat Min Exi Used RIF Installer . | . . . . . . Robots Hacked . | . . . . . . Non-combat . | . . . . . . Combat . | . . . . . . Robot Hacks Applied . | . . . . . . Relay Couplers Released . | . . . . . . Fabnet Peak Effective % . | . . . . . . Robots Rewired . | . . . . . . Allies Hacked . | . . . . . . Hacks Repelled . | . . . . . . Allies | -11 -10 -10 -9 -9 -9 -------- Run | Jun Mat Min Mat Min Exi Total Allies . | . . . . . . Largest Group . | . . . . . . Highest-Rated Group . | . . . . . . Highest-Rated Ally . | . . . . . . Total Orders . | . . . . . . Ally Attacks . | . . . . . . Total Damage . | . . . . . . Kills . | . . . . . . Allies Corrupted . | . . . . . . Allies Melted . | . . . . . . Intel | -11 -10 -10 -9 -9 -9 ------- Run | Jun Mat Min Mat Min Exi Robot Analysis Total . | . . . . . . Derelict Logs Recovered 1 | . . 1 . . . Drone Launches . | . . . . . . Drone Recoveries . | . . . . . . Exploration | -11 -10 -10 -9 -9 -9 ------------- Run | Jun Mat Min Mat Min Exi Turns Passed 3965 | . 59 751 1579 281 1295 Spaces Moved 2234 | 1 30 555 835 130 683 Core . | . . . . . . Treads 1490 | . . . 677 130 683 Legs 744 | 1 30 555 158 . . Wheels . | . . . . . . Hover . | . . . . . . Flight . | . . . . . . Fastest Speed 120 | 120 120 120 120 160 160 Average Speed 149 | 120 120 120 152 204 160 Slowest Speed 240 | 120 120 120 160 240 160 Overloaded Moves . | . . . . . . Propulsion Burnouts . | . . . . . . Robots Hopped . | . . . . . . Cave-ins Triggered . | . . . . . . Exploration Rate (%) 46 | 2 14 94 67 26 78 Regions Visited 5 Branch Regions 3 Pre-discovered Areas 2 | . . 1 . . 1 Known Exits Taken 1 | . . . 1 . . Unknown Exits Taken 4 | 1 1 1 . 1 . Scrap Searched 2 | . . 1 . 1 . Spaces Dug . | . . . . . . Terrain Destroyed 56 | . 4 5 47 . . Melee . | . . . . . . Projectile 9 | . . . 9 . . AOE 47 | . 4 5 38 . . Terrain Rammed . | . . . . . . Walls Destroyed . | . . . . . . Machines Disabled . | . . . . . . Actions | -11 -10 -10 -9 -9 -9 --------- Run | Jun Mat Min Mat Min Exi Total 2567 | . 37 610 995 138 787 Wait 42 | . . 13 15 . 14 Move 2229 | . 29 554 834 129 683 Hop . | . . . . . . Pick Up 44 | . . 7 30 1 6 Fast Attach 12 | . . 4 6 . 2 Attach 19 | . . 1 6 3 9 Detach . | . . . . . . Swap 11 | . . 3 4 . 4 Drop 42 | . . 10 21 1 10 Fire 166 | . 8 17 78 4 59 Melee . | . . . . . . Ram . | . . . . . . Kick 1 | . . 1 . . . Crush . | . . . . . . Escape Stasis . | . . . . . . Rewire . | . . . . . . Trap 1 | . . . 1 . . Miscellaneous . | . . . . . . Route ------- -11/Junkyard -10/Materials -10/Mines -9/Materials (discovered 6 exits: [*Mat x3] / *Min / *Sto x2) -9/Mines (discovered 2 exits: [*Mat] / *Exi) -9/Exiles (discovered 2 exits: [*Min x2]) History --------- Turn | Location | Event 1 | -11/Junkyard | Discovered new exit (range 0) 1 | -11/Junkyard | Entered Materials 18 | -10/Materials | Discovered new exit (range 16) 60 | -10/Materials | Entered Mines 82 | -10/Mines | Met a Derelict bent on vengeance 309 | -10/Mines | Build established: Mutant 447 | -10/Mines | A weapon hastily lodged in a ceiling crevice suddenly fell to the ground 485 | -10/Mines | Found a hidden stash of uninstalled traps 505 | -10/Mines | Learned location of Storage (-9) 688 | -10/Mines | Found a damaged Exp. Sensor Array with a note attached 691 | -10/Mines | Found Prototype Device 691 | -10/Mines | Identified Exp. Sensor Array 703 | -10/Mines | Discovered new exit (range 4) 811 | -10/Mines | Entered Materials 811 | -9/Materials | Evolved 2 slots: Propulsion x1, Utility x1 969 | -9/Materials | Discovered new exit (range 16) 1265 | -9/Materials | Discovered new exit (range 9) 1858 | -9/Materials | Discovered new exit (range 16) 1875 | -9/Materials | Identified exit to Mines 1875 | -9/Materials | Identified exit to Storage 1888 | -9/Materials | Discovered new exit (range 14) 2390 | -9/Materials | Entered Mines 2492 | -9/Mines | Discovered new exit (range 5) 2568 | -9/Mines | Assembled infested the area 2624 | -9/Mines | Build established: Scavenger-Mutant 2663 | -9/Mines | Deemed a non-threat by the Exiles lab entrance 2665 | -9/Mines | Discovered new exit (range 5) 2671 | -9/Mines | Entered Exiles 2692 | -9/Exiles | Discovered new exit (range 15) 2720 | -9/Exiles | Met 8R-AWN 2742 | -9/Exiles | Met EX-HEX 2806 | -9/Exiles | Met EX-DEC 2813 | -9/Exiles | Learned location of Zion (-6) 2865 | -9/Exiles | Discovered new exit (range 10) 3102 | -9/Exiles | Visited The Gauntlet 3487 | -9/Exiles | Met EX-BIN 3511 | -9/Exiles | Aligned with FarCom system 3513 | -9/Exiles | Given EX-Vault access code 3551 | -9/Exiles | Opened EX-Vault 3564 | -9/Exiles | Found Firepult 3596 | -9/Exiles | Warned to stay clear of 0b10 Research branches 3753 | -9/Exiles | Attacked by the Exiles 3851 | -9/Exiles | Core integrity fell below 50% 3933 | -9/Exiles | Lost 7 parts (1p3n2u1w) 3941 | -9/Exiles | Core integrity fell below 20% 3966 | -9/Exiles | Destroyed by 8R-AWN with 8R-AWN's Boregun Last Messages --------------- 03919_ Critical hit (Destroy). 03923_ Penetrated by HV Slug. 03932_ Critical hit (Destroy). 03932_ Penetrated by HV Slug. 03936_ Critical hit (Destroy). 03936_ Imp. Ion Engine destroyed. 03936_ Penetrated by HV Slug. 03940_ HV Slug penetrates Wall. 03944_ Penetrated by HV Slug. 03944_ Critical hit (Destroy). 03944_ Lgt. Armor Plating destroyed. 03949_ Penetrated by HV Slug. 03957_ Critical hit (Destroy). 03957_ Autogun destroyed. 03957_ Penetrated by HV Slug. 03957_ Critical hit (Destroy). 03957_ Lgt. Treads destroyed. 03961_ Penetrated by HV Slug. 03961_ Critical hit (Destroy). 03966_ Penetrated by HV Slug. Map ----- +----------------------------------------------------+ | ?????????????????????????????????????????????????? | | ?????????#####???????????????????????????????????? | | ????????## ##??????????????????????????????????? | | ????????# #??????????????????????????????????? | | ????????# < #??????????????????????????????????? | | ????????# | ###????????????????????????????????? | | ????????# ! #????????????????????????????????? | | ????????# ##????????????????????????????????? | | ????????## #?????????????????????????????????? | | ?????????# ##????????????????????????????????? | | ?????????## #????????????#######?????????????? | | ??????????# #######??????#! "#?????????????? | | ??????????# #""##?????# "#?????????????? | | ??????????## #?????# "#?????????????? | | ???????????##" ##???## ""#????????????## | | ???????????#"" #####" ""#???????????? | | ???????????#### ##" ""#????????????" | | ??????????????## #"" ###????????????" | | ???????????????#"## #?????????????"" | | ???????????????####### ##????????????"" | | ?????????????????????### %% "###?????????? | | ???????????????########" % ""#???????????" | | ???????????????# !!""" " % ##??????????# | | ???????????????#! ###" "#####???### | | ???????????????#! g #?## """#####X# | | ???????????????#! @##??# | | ???????????????# !""" " #;#???#"# % | | ???????????????########## #???###" % | | ????????????????????????# #??????##" | | ????????????????????????# #????????""" | | ????????????????????????# #?????????### | | ????????????????????????# #???????????## | | ????????????????????????# #????????????##" | | ????????????????????????# #?????????????#"" | | ????????????????????????? ?????????????##" | | ????????????????????????? ?????????????#"" | | ????????????????????????? ?????????????#""" | | ????????????????????????? ????????????#""" | | ????????????????????????? ????????????#""" | | ????????????????????????? ????????????#"" | | ????????????????????????? ????????????#""" | | ??????????????????????????????????????#"" | | ??????????????????????????????????????##"" | | ???????????????????????????????????????#"""" | | ???????????????????????????????????????## | | ????????????????????????????????????????#" | | ????????????????????????????????????????#"""" | | ????????????????????????????????????????#"" | | ????????????????????????????????????????#" | | ????????????????????????????????????????#""" | +----------------------------------------------------+ Best States ------------- Heat Dissipation 42 Energy Generation 18 Energy Capacity 265 Matter Stores 300 Matter Capacity 300 Sight Range 16 Terrain Scan Density 10 Armor Coverage 300 Resistance: EM 15 Evasion (%) 55 Recoil Reduction 3 Salvage Targeting 1 Item Schematics ----------------- None Robot Schematics ------------------ None Fabricated ------------ Nothing Alien Tech Used ----------------- None Achievements -------------- None Challenges ------------ None Game ------ Seed DecoyImprovedCanceller Manual? 0 Play Time 00:22:38 Cumulative 320.7 hours Start 2023.04.28 @ 18:55:24 End 2023.04.28 @ 21:14:05 Sessions 3 Manual Loads 0 Difficulty Rogue Special Mode None Game No. 350 Rogue 350 Adventurer 0 Explorer 0 Win Type - Total 27 Types 16/3/2/1/2/0/3/0/0 Lore% 85 Gallery% 84 Achievement% 82 Wizard Run 0 Options --------- ASCII 0 Keyboard 0 Movement Arrows Keybinds 0 Fullscreen 2 Font 24/Smallcaps Map View 76x50 Tactical HUD 1 Map Filters NONE Filters NONE Steam 1 RUN: a7ac5993-c3cf-4810-9349-e0d576b1125d